fUST/lending_fUST_20240109
["ID","MTS","AMOUNT","RATE_DAILY","PERIOD"]
[310878757,1704763843382,-500.0,0.00035616,2]
[310878759,1704763843391,-511.06788197,0.00035616,2]
[310878760,1704763843400,-500.0,0.00035616,2]
[310878762,1704763843409,-500.0,0.00035616,2]
[310878764,1704763843418,-500.0,0.00035616,2]
[310878766,1704763843427,-500.0,0.00035616,2]
[310878767,1704763843437,-500.0,0.00035616,2]
[310878769,1704763843446,-500.0,0.00035616,2]
[310878771,1704763843455,-508.94769445,0.00035616,2]
[310878773,1704763843465,-500.0,0.00035616,2]
[310878775,1704763843474,-500.0,0.00035616,2]
[310878776,1704763843483,-500.0,0.00035616,2]
[310878777,1704763843493,-500.0,0.00035616,2]
[310878779,1704763843502,-529.97,0.00035616,2]
[310878781,1704763843512,-542.03915547,0.00035616,2]
[310878782,1704763843521,-500.0,0.00035616,2]
[310878783,1704763843530,-500.0,0.00035616,2]
[310878785,1704763843540,-1237.49,0.00035616,2]
[310878786,1704763843550,-500.0,0.00035616,2]
[310878787,1704763843559,-502.98317943,0.00035616,2]
[310878788,1704763843569,-206.53527808,0.00035616,2]
[310878789,1704763843578,-500.0,0.00035616,2]
[310878790,1704763843589,-500.0,0.00035616,2]
[310878791,1704763843599,-500.0,0.00035616,2]
[310878792,1704763843608,-500.0,0.00035616,2]
[310878793,1704763843618,-500.0,0.00035616,2]
[310878794,1704763843626,-500.0,0.00035616,2]
[310878795,1704763843635,-500.0,0.00035616,2]
[310878796,1704763843644,-500.0,0.00035616,2]
[310878797,1704763843654,-220.75548853,0.00035616,2]
[310878798,1704763843664,-500.0,0.00035616,2]
[310878799,1704763843673,-500.0,0.00035616,2]
[310878800,1704763843682,-500.0,0.00035616,2]
[310878801,1704763843691,-1085.61,0.00035616,2]
[310878802,1704763843701,-500.0,0.00035616,2]
[310878803,1704763843710,-500.0,0.00035616,2]
[310878804,1704763843722,-856.63,0.00035616,2]
[310878805,1704763843732,-500.0,0.00035616,2]
[310878806,1704763843741,-500.0,0.00035616,2]
[310878807,1704763843751,-500.0,0.00035616,2]
[310878808,1704763843761,-1836.91,0.00035616,2]
[310878809,1704763843771,-500.0,0.00035616,2]
[310878810,1704763843781,-500.0,0.00035616,2]
[310878811,1704763843791,-1162.17,0.00035616,2]
[310878812,1704763843801,-500.0,0.00035616,2]
[310878813,1704763843811,-510.51561126,0.00035616,2]
[310878814,1704763843820,-5186.03,0.00035616,2]
[310878815,1704763843829,-500.0,0.00035616,2]
[310878816,1704763843840,-500.0,0.00035616,2]
[310878817,1704763843849,-500.0,0.00035616,2]
[310878818,1704763843858,-2694.64,0.00035616,2]
[310878819,1704763843867,-500.0,0.00035616,2]
[310878820,1704763843876,-500.0,0.00035616,2]
[310878821,1704763843885,-500.0,0.00035616,2]
[310878822,1704763843895,-500.0,0.00035616,2]
[310878823,1704763843904,-500.0,0.00035616,2]
[310878824,1704763843914,-500.0,0.00035616,2]
[310878825,1704763843923,-500.0,0.00035616,2]
[310878826,1704763843932,-508.20751418,0.00035616,2]
[310878827,1704763843942,-503.11176841,0.00035616,2]
[310878828,1704763843952,-500.0,0.00035616,2]
[310878829,1704763843961,-500.0,0.00035616,2]
[310878830,1704763843971,-500.0,0.00035616,2]
[310878831,1704763843980,-500.0,0.00035616,2]
[310878832,1704763843989,-1250.59,0.00035616,2]
[310878833,1704763843998,-505.18253377,0.00035616,2]
[310878834,1704763844008,-2315.92,0.00035616,2]
[310878835,1704763844017,-500.0,0.00035616,2]
[310878836,1704763844026,-500.0,0.00035616,2]
[310878837,1704763844035,-285.81010276,0.00035616,2]
[310878838,1704763844045,-500.0,0.00035616,2]
[310878839,1704763844055,-500.0,0.00035616,2]
[310878840,1704763844064,-500.0,0.00035616,2]
[310878841,1704763844074,-220.0,0.00035616,2]
[310878842,1704763844085,-630.69,0.00035616,2]
[310878843,1704763844097,-5708.91,0.00035616,2]
[310878844,1704763844107,-500.0,0.00035616,2]
[310878845,1704763844117,-528.65111872,0.00035616,2]
[310878846,1704763844127,-768.87,0.00035616,2]
[310878847,1704763844137,-13543.63,0.00035616,2]
[310878848,1704763844147,-500.0,0.00035616,2]
[310878849,1704763844156,-500.0,0.00035616,2]
[310878850,1704763844166,-500.0,0.00035616,2]
[310878851,1704763844176,-500.0,0.00035616,2]
[310878852,1704763844185,-1942.37,0.00035616,2]
[310878853,1704763844194,-500.0,0.00035616,2]
[310878854,1704763844204,-500.0,0.00035616,2]
[310878855,1704763844215,-500.0,0.00035616,2]
[310878856,1704763844225,-516.65785481,0.00035616,2]
[310878857,1704763844235,-500.0,0.00035616,2]
[310878858,1704763844245,-591.97,0.00035616,2]
[310878859,1704763844255,-500.0,0.00035616,2]
[310878860,1704763844266,-48896.68,0.00035616,2]
[310878861,1704763844275,-2189.47,0.00035616,2]
[310878862,1704763844286,-500.0,0.00035616,2]
[310878863,1704763844296,-1653.03,0.00035616,2]
[310878864,1704763844306,-500.0,0.00035616,2]
[310878865,1704763844316,-500.0,0.00035616,2]
[310878866,1704763844326,-500.0,0.00035616,2]
[310878867,1704763844338,-500.0,0.00035616,2]
[310878868,1704763844347,-2042.88,0.00035616,2]
[310878869,1704763844355,-500.0,0.00035616,2]
[310878870,1704763844364,-2520.41,0.00035616,2]
[310878871,1704763844372,-500.0,0.00035616,2]
[310878872,1704763844379,-500.0,0.00035616,2]
[310878873,1704763844388,-500.0,0.00035616,2]
[310878874,1704763844397,-535.18934265,0.00035616,2]
[310878875,1704763844406,-500.0,0.00035616,2]
[310878876,1704763844416,-500.0,0.00035616,5]
[310878877,1704763844425,-511.44536432,0.00035616,2]
[310878878,1704763844434,-514.31403368,0.00035616,2]
[310878879,1704763844443,-500.0,0.00035616,2]
[310878880,1704763844453,-500.0,0.00035616,2]
[310878881,1704763844462,-665.06,0.00035616,2]
[310878882,1704763844472,-500.0,0.00035616,2]
[310878883,1704763844481,-266.36806592,0.00035616,2]
[310878884,1704763844490,-1000.0,0.00035616,2]
[310878885,1704763844500,-500.0,0.00035616,2]
[310878886,1704763844509,-2260.43,0.00035616,2]
[310878887,1704763844518,-500.0,0.00035616,2]
[310878888,1704763844527,-500.0,0.00035616,2]
[310878889,1704763844537,-500.0,0.00035616,2]
[310878890,1704763844546,-500.0,0.00035616,2]
[310878891,1704763844555,-500.0,0.00035616,2]
[310878892,1704763844564,-500.0,0.00035616,2]
[310878893,1704763844574,-500.0,0.00035616,2]
[310878894,1704763844583,-500.0,0.00035616,2]
[310878895,1704763844596,-500.0,0.00035616,2]
[310878896,1704763844606,-500.0,0.00035616,2]
[310878897,1704763844617,-1401.77,0.00035616,2]
[310878898,1704763844626,-500.0,0.00035616,2]
[310878899,1704763844635,-500.0,0.00035616,2]
[310878900,1704763844643,-500.86593983,0.00035616,2]
[310878901,1704763844652,-604.73200117,0.00035616,2]
[310878902,1704763844660,-500.0,0.00035616,2]
[310878903,1704763844669,-500.0,0.00035616,2]
[310878904,1704763844678,-480.60904394,0.00035616,2]
[310878905,1704763844687,-506.88634979,0.00035616,2]
[310878906,1704763844697,-500.0,0.00035616,2]
[310878907,1704763844707,-500.0,0.00035616,2]
[310878908,1704763844716,-500.0,0.00035616,2]
[310878909,1704763844726,-501.03275378,0.00035616,2]
[310878910,1704763844735,-1288.33,0.00035616,2]
[310878911,1704763844744,-215.86058,0.00035616,120]
[310878912,1704763844753,-5000.0,0.00035688,7]
[310878913,1704763844762,-150.90945433,0.00035751,2]
[310878914,1704763844771,-250.34067559,0.00035751,2]
[310878915,1704763844781,-2139.377886,0.00035798,2]
[310878916,1704763844789,-1050.0,0.00035855,7]
[310878917,1704763844798,-500.0,0.0003589,2]
[310878918,1704763844810,-500.0,0.0003589,2]
[310878919,1704763844821,-500.0,0.0003589,2]
[310878920,1704763844830,-500.0,0.0003589,2]
[310878921,1704763844841,-500.0,0.0003589,2]
[310878922,1704763844850,-500.0,0.0003589,2]
[310878923,1704763844860,-960.29,0.0003589,2]
[310878924,1704763844869,-500.0,0.0003589,2]
[310878925,1704763844879,-500.0,0.0003589,2]
[310878926,1704763844889,-565.38316853,0.0003589,2]
[310878927,1704763844899,-500.0,0.0003589,2]
[310878928,1704763844908,-500.0,0.0003589,2]
[310878929,1704763844917,-500.0,0.0003589,2]
[310878930,1704763844927,-500.0,0.0003589,2]
[310878931,1704763844936,-500.0,0.0003589,2]
[310878932,1704763844945,-500.0,0.0003589,2]
[310878933,1704763844954,-188.24654826,0.0003589,2]
[310878934,1704763844963,-500.0,0.0003589,2]
[310878935,1704763844972,-500.0,0.0003589,2]
[310878936,1704763844981,-500.0,0.0003589,2]
[310878937,1704763844991,-500.0,0.0003589,2]
[310878938,1704763845000,-500.0,0.0003589,2]
[310878939,1704763845009,-604.40513324,0.0003589,2]
[310878940,1704763845019,-500.0,0.0003589,2]
[310878941,1704763845028,-500.0,0.0003589,2]
[310878942,1704763845037,-500.0,0.0003589,2]
[310878943,1704763845046,-502.95104045,0.0003589,2]
[310878944,1704763845055,-951.92,0.0003589,2]
[310878945,1704763845063,-500.0,0.0003589,2]
[310878946,1704763845073,-551.09885866,0.0003589,2]
[310878947,1704763845082,-259.79550932,0.0003589,2]
[310878948,1704763845093,-500.0,0.0003589,2]
[310878949,1704763845102,-298.9788414,0.0003589,2]
[310878950,1704763845112,-500.0,0.0003589,2]
[310878951,1704763845121,-500.0,0.0003589,2]
[310878952,1704763845131,-1300.3,0.0003589,2]
[310878953,1704763845140,-500.0,0.0003589,2]
[310878954,1704763845149,-310.68766809,0.0003589,2]
[310878955,1704763845160,-500.0,0.0003589,2]
[310878956,1704763845169,-500.0,0.0003589,2]
[310878957,1704763845178,-500.0,0.0003589,2]
[310878958,1704763845188,-500.0,0.0003589,2]
[310878959,1704763845198,-500.0,0.0003589,2]
[310878960,1704763845208,-500.0,0.0003589,2]
[310878961,1704763845218,-500.0,0.0003589,2]
[310878962,1704763845227,-500.0,0.0003589,2]
[310878963,1704763845236,-500.0,0.0003589,2]
[310878964,1704763845246,-500.0,0.0003589,2]
[310878965,1704763845255,-500.0,0.0003589,2]
[310878966,1704763845264,-500.0,0.0003589,2]
[310878967,1704763845274,-595.61,0.0003589,2]
[310878968,1704763845283,-500.0,0.0003589,2]
[310878969,1704763845293,-500.0,0.0003589,2]
[310878970,1704763845303,-290.90152513,0.0003589,2]
[310878971,1704763845313,-500.0,0.0003589,2]
[310878972,1704763845324,-500.0,0.0003589,2]
[310878973,1704763845333,-500.0,0.0003589,2]
[310878974,1704763845345,-500.0,0.0003589,2]
[310878975,1704763845354,-500.0,0.0003589,2]
[310878976,1704763845363,-500.0,0.0003589,2]
[310878977,1704763845373,-500.0,0.0003589,2]
[310878978,1704763845382,-938.87,0.0003589,2]
[310878979,1704763845391,-500.0,0.0003589,2]
[310878980,1704763845401,-500.0,0.0003589,2]
[310878981,1704763845410,-500.0,0.0003589,2]
[310878982,1704763845419,-500.0,0.0003589,2]
[310878983,1704763845527,-500.0,0.0003589,2]
[310878984,1704763845537,-500.0,0.0003589,2]
[310878985,1704763845547,-586.67251986,0.0003589,2]
[310878986,1704763845556,-500.0,0.0003589,2]
[310878987,1704763845566,-500.0,0.0003589,2]
[310878988,1704763845574,-500.0,0.0003589,2]
[310878989,1704763845583,-500.0,0.0003589,2]
[310878990,1704763845594,-500.0,0.0003589,2]
[310878991,1704763845603,-500.0,0.0003589,2]
[310878992,1704763845612,-616.23330672,0.0003589,2]
[310878993,1704763845621,-1603.58,0.0003589,2]
[310878994,1704763845630,-500.0,0.0003589,2]
[310878995,1704763845639,-500.0,0.0003589,2]
[310878996,1704763845648,-500.0,0.0003589,2]
[310878997,1704763845658,-500.0,0.0003589,2]
[310878998,1704763845667,-545.35299882,0.0003589,2]
[310878999,1704763845676,-500.0,0.0003589,2]
[310879000,1704763845685,-673.02,0.0003589,2]
[310879001,1704763845695,-500.0,0.0003589,2]
[310879002,1704763845705,-500.0,0.0003589,2]
[310879003,1704763845714,-500.0,0.0003589,2]
[310879004,1704763845727,-500.0,0.0003589,2]
[310879005,1704763845736,-500.0,0.0003589,2]
[310879006,1704763845745,-321.78010021,0.0003589,2]
[310879007,1704763845754,-500.0,0.0003589,2]
[310879008,1704763845764,-500.0,0.0003589,2]
[310879009,1704763845773,-500.0,0.0003589,2]
[310879010,1704763845783,-500.0,0.0003589,2]
[310879011,1704763845792,-212.22805132,0.0003589,2]
[310879012,1704763845806,-500.0,0.0003589,2]
[310879013,1704763845816,-500.0,0.0003589,2]
[310879015,1704763845825,-1624.12,0.0003589,2]
[310879016,1704763845834,-1386.38,0.0003589,2]
[310879017,1704763845846,-500.0,0.0003589,2]
[310879018,1704763845855,-500.0,0.0003589,2]
[310879019,1704763845864,-500.0,0.0003589,2]
[310879020,1704763845873,-500.0,0.0003589,2]
[310879021,1704763845882,-576.0153045,0.0003589,2]
[310879022,1704763845892,-500.0,0.0003589,2]
[310879023,1704763845901,-500.0,0.0003589,2]
[310879024,1704763845910,-527.47116776,0.0003589,2]
[310879025,1704763845919,-500.0,0.0003589,2]
[310879026,1704763845929,-502.8689819,0.0003589,2]
[310879027,1704763845938,-529.97,0.0003589,2]
[310879028,1704763845947,-500.0,0.0003589,2]
[310879029,1704763845955,-500.0,0.0003589,2]
[310879030,1704763845965,-1237.49,0.0003589,2]
[310879031,1704763845974,-500.0,0.0003589,2]
[310879033,1704763845983,-500.0,0.0003589,2]
[310879034,1704763845991,-500.0,0.0003589,2]
[310879035,1704763846000,-500.0,0.0003589,2]
[310879036,1704763846010,-503.93173041,0.0003589,2]
[310879037,1704763846019,-500.0,0.0003589,2]
[310879038,1704763846028,-423.09973975,0.0003589,2]
[310879039,1704763846037,-500.0,0.0003589,2]
[310879040,1704763846047,-500.0,0.0003589,2]
[310879041,1704763846056,-1085.61,0.0003589,2]
[310879042,1704763846065,-500.0,0.0003589,2]
[310879043,1704763846074,-500.0,0.0003589,2]
[310879044,1704763846084,-856.63,0.0003589,2]
[310879045,1704763846094,-500.0,0.0003589,2]
[310879046,1704763846103,-461.59171881,0.0003589,2]
[310879047,1704763846112,-500.0,0.0003589,2]
[310879048,1704763846121,-1836.91,0.0003589,2]
[310879049,1704763846130,-500.0,0.0003589,2]
[310879051,1704763846140,-500.0,0.0003589,2]
[310879054,1704763846149,-1162.17,0.0003589,2]
[310879056,1704763846158,-500.0,0.0003589,2]
[310879058,1704763846167,-5186.03,0.0003589,2]
[310879060,1704763846176,-500.0,0.0003589,2]
[310879062,1704763846185,-500.0,0.0003589,2]
[310879064,1704763846194,-500.0,0.0003589,2]
[310879066,1704763846204,-2694.64,0.0003589,2]
[310879068,1704763846213,-500.0,0.0003589,2]
[310879070,1704763846222,-500.0,0.0003589,2]
[310879072,1704763846231,-500.0,0.0003589,2]
[310879074,1704763846240,-500.0,0.0003589,2]
[310879076,1704763846249,-500.0,0.0003589,2]
[310879078,1704763846258,-500.0,0.0003589,2]
[310879080,1704763846267,-500.0,0.0003589,2]
[310879082,1704763846277,-509.88199587,0.0003589,2]
[310879084,1704763846286,-500.0,0.0003589,2]
[310879086,1704763846295,-1250.59,0.0003589,2]
[310879088,1704763846304,-2315.92,0.0003589,2]
[310879090,1704763846313,-500.0,0.0003589,2]
[310879092,1704763846322,-500.0,0.0003589,2]
[310879094,1704763846331,-500.0,0.0003589,2]
[310879096,1704763846342,-500.0,0.0003589,2]
[310879097,1704763846352,-537.26468471,0.0003589,2]
[310879098,1704763846361,-630.69,0.0003589,2]
[310879099,1704763846370,-5708.91,0.0003589,2]
[310879100,1704763846380,-768.87,0.0003589,2]
[310879101,1704763846390,-13543.63,0.0003589,2]
[310879102,1704763846399,-500.0,0.0003589,2]
[310879103,1704763846408,-500.0,0.0003589,2]
[310879104,1704763846418,-500.0,0.0003589,2]
[310879105,1704763846427,-359.00396232,0.0003589,2]
[310879106,1704763846436,-1942.37,0.0003589,2]
[310879107,1704763846445,-500.0,0.0003589,2]
[310879108,1704763846454,-584.23755453,0.0003589,2]
[310879109,1704763846463,-500.0,0.0003589,2]
[310879110,1704763846472,-591.97,0.0003589,2]
[310879111,1704763846481,-500.0,0.0003589,2]
[310879112,1704763846491,-48896.68,0.0003589,2]
[310879113,1704763846500,-2189.47,0.0003589,2]
[310879114,1704763846509,-500.0,0.0003589,2]
[310879115,1704763846518,-1653.03,0.0003589,2]
[310879116,1704763846527,-500.0,0.0003589,2]
[310879117,1704763846536,-500.0,0.0003589,2]
[310879118,1704763846546,-500.0,0.0003589,2]
[310879119,1704763846555,-500.0,0.0003589,2]
[310879120,1704763846564,-2042.88,0.0003589,2]
[310879121,1704763846573,-500.0,0.0003589,2]
[310879122,1704763846582,-2520.41,0.0003589,2]
[310879123,1704763846592,-602.70554182,0.0003589,2]
[310879124,1704763846601,-500.0,0.0003589,2]
[310879125,1704763846610,-500.0,0.0003589,2]
[310879126,1704763846619,-500.0,0.0003589,2]
[310879127,1704763846629,-500.0,0.0003589,5]
[310879128,1704763846638,-500.0,0.0003589,2]
[310879129,1704763846648,-500.0,0.0003589,2]
[310879130,1704763846657,-665.06,0.0003589,2]
[310879131,1704763846667,-500.0,0.0003589,2]
[310879132,1704763846676,-1000.0,0.0003589,2]
[310879133,1704763846686,-500.0,0.0003589,2]
[310879134,1704763846694,-2260.43,0.0003589,2]
[310879135,1704763846703,-500.0,0.0003589,2]
[310879136,1704763846712,-500.0,0.0003589,2]
[310879137,1704763846721,-282.62911934,0.0003589,2]
[310879138,1704763846730,-500.0,0.0003589,2]
[310879139,1704763846739,-500.0,0.0003589,2]
[310879140,1704763846748,-500.0,0.0003589,2]
[310879141,1704763846757,-500.0,0.0003589,2]
[310879142,1704763846767,-500.0,0.0003589,2]
[310879143,1704763846776,-289.68185809,0.0003589,2]
[310879144,1704763846785,-1401.77,0.0003589,2]
[310879146,1704763846795,-500.0,0.0003589,2]
[310879147,1704763846804,-500.0,0.0003589,2]
[310879149,1704763846813,-563.62061951,0.0003589,2]
[310879151,1704763846823,-303.609576,0.0003589,2]
[310879153,1704763846832,-500.0,0.0003589,2]
[310879155,1704763846842,-266.61540679,0.0003589,2]
[310879157,1704763846851,-510.0357936,0.0003589,2]
[310879159,1704763846860,-1288.33,0.0003589,2]
[310879161,1704763846869,-5000.0,0.00035911,2]
[310879162,1704763846878,-620.00050948,0.0003592,2]
[310879164,1704763846888,-230.23731364,0.00036,4]
[310879165,1704763846897,-2000.0,0.00036,2]
[310879166,1704763846906,-533.30586621,0.00036,30]
[310879167,1704763846916,-500.0,0.00036,4]
[310879168,1704763846925,-1000.0,0.00036,36]
[310879169,1704763846934,-500.0,0.00036,7]
[310879170,1704763846943,-184.0,0.00036,2]
[310879171,1704763846952,-1255.0,0.00036,7]
[310879172,1704763846962,-155.0,0.0003607,2]
[310879173,1704763846971,-2000.0,0.00036082,2]
[310879174,1704763846980,-8950.000001,0.00036155,30]
[310879175,1704763846989,-12231.18529691,0.00036156,2]
[310879176,1704763846998,-50000.0,0.00036156,7]
[310879177,1704763847007,-50000.0,0.00036159,7]
[310879178,1704763847017,-176.71719555,0.00036161,4]
[310879179,1704763847027,-198.18313569,0.00036161,4]
[310879180,1704763847036,-172.01434108,0.00036161,4]
[310879181,1704763847046,-155.55611687,0.00036162,2]
[310879182,1704763847055,-182.40769,0.00036164,4]
[310879183,1704763847064,-237.37270531,0.00036164,5]
[310879184,1704763847074,-546.37892691,0.00036164,2]
[310879185,1704763847083,-500.0,0.00036164,2]
[310879186,1704763847094,-500.0,0.00036164,2]
[310879187,1704763847104,-500.0,0.00036164,2]
[310879188,1704763847114,-331.4944855,0.00036164,2]
[310879189,1704763847124,-960.29,0.00036164,2]
[310879190,1704763847133,-500.0,0.00036164,2]
[310879191,1704763847143,-500.0,0.00036164,2]
[310879192,1704763847153,-175.6321865,0.00036164,2]
[310879193,1704763847162,-412.63715383,0.00036164,2]
[310879194,1704763847171,-500.0,0.00036164,2]
[310879195,1704763847181,-500.0,0.00036164,2]
[310879196,1704763847192,-500.0,0.00036164,2]
[310879197,1704763847202,-500.0,0.00036164,2]
[310879198,1704763847212,-500.0,0.00036164,2]
[310879199,1704763847221,-513.81411814,0.00036164,2]
[310879200,1704763847231,-500.0,0.00036164,2]
[310879201,1704763847241,-500.0,0.00036164,2]
[310879202,1704763847251,-500.0,0.00036164,2]
[310879203,1704763847261,-500.0,0.00036164,2]
[310879204,1704763847270,-500.0,0.00036164,2]
[310879205,1704763847279,-951.92,0.00036164,2]
[310879207,1704763847288,-500.0,0.00036164,2]
[310879209,1704763847297,-500.0,0.00036164,2]
[310879211,1704763847306,-500.0,0.00036164,2]
[310879213,1704763847315,-500.0,0.00036164,2]
[310879214,1704763847324,-1300.3,0.00036164,2]
[310879215,1704763847334,-511.28538385,0.00036164,2]
[310879216,1704763847344,-500.0,0.00036164,2]
[310879217,1704763847353,-500.0,0.00036164,2]
[310879218,1704763847363,-500.0,0.00036164,2]
[310879219,1704763847372,-500.0,0.00036164,2]
[310879220,1704763847381,-500.0,0.00036164,2]
[310879221,1704763847391,-500.0,0.00036164,2]
[310879222,1704763847400,-500.0,0.00036164,2]
[310879223,1704763847409,-500.0,0.00036164,2]
[310879224,1704763847419,-493.03884634,0.00036164,2]
[310879225,1704763847429,-500.0,0.00036164,2]
[310879227,1704763847438,-500.0,0.00036164,2]
[310879228,1704763847447,-500.0,0.00036164,2]
[310879230,1704763847456,-595.61,0.00036164,2]
[310879232,1704763847465,-502.36032708,0.00036164,2]
[310879234,1704763847474,-610.03566014,0.00036164,2]
[310879236,1704763847483,-500.0,0.00036164,2]
[310879238,1704763847493,-500.0,0.00036164,2]
[310879240,1704763847503,-500.0,0.00036164,2]
[310879242,1704763847513,-500.0,0.00036164,2]
[310879244,1704763847522,-500.0,0.00036164,2]
[310879246,1704763847537,-500.0,0.00036164,2]
[310879248,1704763847547,-500.0,0.00036164,2]
[310879251,1704763847557,-452.03500005,0.00036164,2]
[310879252,1704763847567,-938.87,0.00036164,2]
[310879254,1704763847578,-500.0,0.00036164,2]
[310879256,1704763847589,-500.0,0.00036164,2]
[310879258,1704763847601,-500.0,0.00036164,2]
[310879260,1704763847612,-500.0,0.00036164,2]
[310879263,1704763847623,-500.0,0.00036164,2]
[310879265,1704763847632,-536.64584687,0.00036164,2]
[310879267,1704763847642,-500.0,0.00036164,2]
[310879269,1704763847651,-500.0,0.00036164,2]
[310879271,1704763847660,-500.0,0.00036164,2]
[310879272,1704763847669,-500.0,0.00036164,2]
[310879274,1704763847679,-500.0,0.00036164,2]
[310879276,1704763847689,-1603.58,0.00036164,2]
[310879278,1704763847699,-500.0,0.00036164,2]
[310879280,1704763847708,-500.0,0.00036164,2]
[310879282,1704763847718,-500.0,0.00036164,2]
[310879284,1704763847729,-500.0,0.00036164,2]
[310879286,1704763847741,-500.0,0.00036164,2]
[310879288,1704763847753,-673.02,0.00036164,2]
[310879290,1704763847764,-500.0,0.00036164,2]
[310879292,1704763847775,-500.0,0.00036164,2]
[310879294,1704763847785,-500.0,0.00036164,2]
[310879297,1704763847796,-500.0,0.00036164,2]
[310879298,1704763847807,-500.0,0.00036164,2]
[310879301,1704763847817,-500.0,0.00036164,2]
[310879302,1704763847828,-500.0,0.00036164,2]
[310879304,1704763847840,-500.0,0.00036164,2]
[310879315,1704763847938,-500.0,0.00036164,2]
[310879317,1704763847948,-500.0,0.00036164,2]
[310879319,1704763847958,-1624.12,0.00036164,2]
[310879321,1704763847968,-1386.38,0.00036164,2]
[310879323,1704763847977,-538.20483802,0.00036164,2]
[310879325,1704763847987,-500.0,0.00036164,2]
[310879327,1704763847997,-500.0,0.00036164,2]
[310879329,1704763848007,-500.0,0.00036164,2]
[310879331,1704763848017,-500.0,0.00036164,2]
[310879333,1704763848027,-213.19278426,0.00036164,2]
[310879335,1704763848036,-500.0,0.00036164,2]
[310879336,1704763848047,-529.97,0.00036164,2]
[310879338,1704763848058,-500.0,0.00036164,2]
[310879340,1704763848067,-500.0,0.00036164,2]
[310879342,1704763848077,-1237.49,0.00036164,2]
[310879344,1704763848087,-500.0,0.00036164,2]
[310879346,1704763848100,-500.0,0.00036164,2]
[310879348,1704763848111,-500.0,0.00036164,2]
[310879350,1704763848120,-500.0,0.00036164,2]
[310879352,1704763848129,-500.0,0.00036164,2]
[310879354,1704763848139,-500.0,0.00036164,2]
[310879355,1704763848148,-500.0,0.00036164,2]
[310879356,1704763848158,-1085.61,0.00036164,2]
[310879357,1704763848167,-500.0,0.00036164,2]
[310879358,1704763848177,-856.63,0.00036164,2]
[310879359,1704763848187,-455.99894904,0.00036164,2]
[310879360,1704763848197,-500.0,0.00036164,2]
[310879361,1704763848207,-1836.91,0.00036164,2]
[310879362,1704763848218,-500.0,0.00036164,2]
[310879363,1704763848228,-500.0,0.00036164,2]
[310879364,1704763848238,-1162.17,0.00036164,2]
[310879365,1704763848248,-500.0,0.00036164,2]
[310879366,1704763848258,-5186.03,0.00036164,2]
[310879367,1704763848268,-178.76624602,0.00036164,2]
[310879368,1704763848277,-500.0,0.00036164,2]
[310879369,1704763848287,-500.0,0.00036164,2]
[310879370,1704763848298,-2694.64,0.00036164,2]
[310879371,1704763848308,-500.0,0.00036164,2]
[310879372,1704763848318,-500.0,0.00036164,2]
[310879373,1704763848328,-500.0,0.00036164,2]
[310879374,1704763848338,-500.0,0.00036164,2]